fUST/lending_fUST_20250209
["ID","MTS","AMOUNT","RATE_DAILY","PERIOD"]
[352322653,1739041841640,-1025.49,0.00012054,2]
[352322655,1739041841649,-598.38,0.00012054,2]
[352322656,1739041841659,-500.0,0.00012054,2]
[352322658,1739041841668,-500.0,0.00012054,2]
[352322660,1739041841678,-500.0,0.00012054,2]
[352322662,1739041841687,-684.76,0.00012054,2]
[352322664,1739041841697,-901.92,0.00012054,2]
[352322666,1739041841706,-500.0,0.00012054,2]
[352322667,1739041841715,-575.65,0.00012054,2]
[352322669,1739041841725,-763.58,0.00012054,2]
[352322671,1739041841734,-500.0,0.00012054,2]
[352322673,1739041841743,-500.0,0.00012054,2]
[352322675,1739041841753,-702.82,0.00012054,2]
[352322677,1739041841762,-500.0,0.00012054,2]
[352322679,1739041841771,-500.0,0.00012054,2]
[352322681,1739041841781,-500.0,0.00012054,2]
[352322682,1739041841791,-500.0,0.00012054,2]
[352322684,1739041841800,-809.73,0.00012054,2]
[352322686,1739041841809,-1376.22,0.00012054,2]
[352322688,1739041841818,-779.03,0.00012054,2]
[352322690,1739041841828,-3344.46,0.00012054,2]
[352322692,1739041841837,-22625.44,0.00012054,2]
[352322694,1739041841846,-548.82,0.00012054,2]
[352322696,1739041841856,-500.0,0.00012054,2]
[352322697,1739041841865,-746.61,0.00012054,2]
[352322699,1739041841874,-988.79,0.00012054,2]
[352322701,1739041841883,-1169.28,0.00012054,2]
[352322703,1739041841893,-1091.33,0.00012054,2]
[352322705,1739041841902,-737.91,0.00012054,2]
[352322707,1739041841912,-500.0,0.00012054,2]
[352322709,1739041841922,-928.68,0.00012054,2]
[352322711,1739041841931,-564.92,0.00012054,2]
[352322713,1739041841941,-500.0,0.00012054,2]
[352322715,1739041841950,-8403.96,0.00012054,2]
[352322716,1739041841962,-500.0,0.00012054,2]
[352322718,1739041841972,-793.65,0.00012054,2]
[352322720,1739041841981,-1064.8,0.00012054,2]
[352322722,1739041841990,-836.92,0.00012054,2]
[352322724,1739041841999,-2770.49,0.00012054,2]
[352322726,1739041842008,-615.99,0.00012054,2]
[352322727,1739041842017,-500.0,0.00012054,2]
[352322729,1739041842026,-500.0,0.00012054,2]
[352322731,1739041842037,-2095.76,0.00012054,2]
[352322733,1739041842046,-500.0,0.00012054,2]
[352322735,1739041842055,-500.0,0.00012054,2]
[352322737,1739041842064,-825.31,0.00012054,2]
[352322739,1739041842073,-500.0,0.00012054,2]
[352322741,1739041842082,-1760.38,0.00012054,2]
[352322743,1739041842091,-4661.75,0.00012054,2]
[352322744,1739041842100,-500.0,0.00012054,2]
[352322746,1739041842110,-500.0,0.00012054,2]
[352322748,1739041842119,-500.0,0.00012054,2]
[352322750,1739041842128,-1764.66,0.00012054,2]
[352322752,1739041842138,-929.2,0.00012054,2]
[352322754,1739041842154,-2039.45,0.00012054,2]
[352322756,1739041842165,-1859.27,0.00012054,2]
[352322757,1739041842175,-500.0,0.00012054,2]
[352322759,1739041842185,-975.34,0.00012054,2]
[352322761,1739041842199,-500.0,0.00012054,2]
[352322763,1739041842211,-8082.14,0.00012054,2]
[352322765,1739041842220,-625.45,0.00012054,2]
[352322767,1739041842230,-877.14,0.00012054,2]
[352322769,1739041842240,-500.0,0.00012054,2]
[352322771,1739041842249,-629.44,0.00012054,2]
[352322773,1739041842259,-500.0,0.00012054,2]
[352322774,1739041842267,-639.88,0.00012054,2]
[352322775,1739041842276,-2000.0,0.000121,2]
[352322776,1739041842286,-151.0,0.000121,2]
[352322777,1739041842295,-1500.0,0.00012112,2]
[352322778,1739041842304,-500.0,0.0001213,2]
[352322779,1739041842313,-2400.0,0.0001213,2]
[352322780,1739041842322,-151.0,0.00012191,2]
[352322781,1739041842331,-151.0,0.00012191,2]
[352322782,1739041842341,-151.0,0.00012191,2]
[352322783,1739041842350,-151.0,0.00012191,2]
[352322784,1739041842359,-500.0,0.00012191,2]
[352322785,1739041842368,-979.42,0.00012191,2]
[352322786,1739041842377,-1025.49,0.00012191,2]
[352322787,1739041842386,-598.38,0.00012191,2]
[352322788,1739041842395,-500.0,0.00012191,2]
[352322789,1739041842404,-500.0,0.00012191,2]
[352322790,1739041842414,-226.05334414,0.00012191,2]
[352322791,1739041842423,-684.76,0.00012191,2]
[352322792,1739041842432,-901.92,0.00012191,2]
[352322793,1739041842442,-500.0,0.00012191,2]
[352322794,1739041842451,-575.65,0.00012191,2]
[352322795,1739041842460,-763.58,0.00012191,2]
[352322796,1739041842469,-500.0,0.00012191,2]
[352322797,1739041842480,-151.0,0.00012191,2]
[352322798,1739041842489,-151.0,0.00012191,2]
[352322799,1739041842499,-500.0,0.00012191,2]
[352322800,1739041842507,-151.0,0.00012191,2]
[352322801,1739041842517,-702.82,0.00012191,2]
[352322802,1739041842526,-201.471308,0.00012191,2]
[352322803,1739041842535,-201.471308,0.00012191,2]
[352322804,1739041842544,-500.0,0.00012191,2]
[352322805,1739041842553,-185.146042,0.00012191,2]
[352322806,1739041842562,-185.146042,0.00012191,2]
[352322807,1739041842571,-500.0,0.00012191,2]
[352322808,1739041842581,-500.0,0.00012191,2]
[352322809,1739041842590,-500.0,0.00012191,2]
[352322818,1739041842730,-809.73,0.00012191,2]
[352322821,1739041842741,-1376.22,0.00012191,2]
[352322823,1739041842751,-779.03,0.00012191,2]
[352322825,1739041842760,-3344.46,0.00012191,2]
[352322827,1739041842770,-22625.44,0.00012191,2]
[352322829,1739041842779,-548.82,0.00012191,2]
[352322831,1739041842789,-500.0,0.00012191,2]
[352322833,1739041842798,-746.61,0.00012191,2]
[352322835,1739041842808,-988.79,0.00012191,2]
[352322837,1739041842817,-1169.28,0.00012191,2]
[352322841,1739041842827,-1091.33,0.00012191,2]
[352322843,1739041842836,-737.91,0.00012191,2]
[352322846,1739041842845,-500.0,0.00012191,2]
[352322848,1739041842855,-928.68,0.00012191,2]
[352322850,1739041842864,-564.92,0.00012191,2]
[352322852,1739041842874,-473.385404,0.00012191,2]
[352322853,1739041842884,-151.0,0.00012191,2]
[352322856,1739041842893,-500.0,0.00012191,2]
[352322858,1739041842904,-8403.96,0.00012191,2]
[352322860,1739041842912,-473.385404,0.00012191,2]
[352322862,1739041842922,-500.0,0.00012191,2]
[352322864,1739041842931,-793.65,0.00012191,2]
[352322867,1739041842940,-1064.8,0.00012191,2]
[352322870,1739041842950,-836.92,0.00012191,2]
[352322873,1739041842964,-2770.49,0.00012191,2]
[352322877,1739041842974,-615.99,0.00012191,2]
[352322879,1739041842984,-500.0,0.00012191,2]
[352322882,1739041842993,-500.0,0.00012191,2]
[352322886,1739041843005,-2095.76,0.00012191,2]
[352322889,1739041843015,-151.0,0.00012191,2]
[352322892,1739041843024,-151.0,0.00012191,2]
[352322895,1739041843034,-500.0,0.00012191,2]
[352322898,1739041843044,-151.12975,0.00012191,2]
[352322901,1739041843054,-500.0,0.00012191,2]
[352322904,1739041843063,-825.31,0.00012191,2]
[352322907,1739041843072,-203.88817,0.00012191,2]
[352322910,1739041843081,-203.88817,0.00012191,2]
[352322913,1739041843091,-500.0,0.00012191,2]
[352322917,1739041843101,-1760.38,0.00012191,2]
[352322921,1739041843110,-4661.75,0.00012191,2]
[352322925,1739041843119,-500.0,0.00012191,2]
[352322929,1739041843129,-500.0,0.00012191,2]
[352322933,1739041843138,-476.18990478,0.00012191,2]
[352322936,1739041843147,-1764.66,0.00012191,2]
[352322939,1739041843156,-929.2,0.00012191,2]
[352322943,1739041843166,-2039.45,0.00012191,2]
[352322947,1739041843175,-1859.27,0.00012191,2]
[352322949,1739041843185,-500.0,0.00012191,2]
[352322953,1739041843195,-975.34,0.00012191,2]
[352322955,1739041843204,-500.0,0.00012191,2]
[352322957,1739041843213,-8082.14,0.00012191,2]
[352322960,1739041843223,-625.45,0.00012191,2]
[352322964,1739041843232,-287.190537,0.00012191,2]
[352322967,1739041843241,-877.14,0.00012191,2]
[352322970,1739041843251,-500.0,0.00012191,2]
[352322973,1739041843263,-287.190537,0.00012191,2]
[352322975,1739041843272,-629.44,0.00012191,2]
[352322977,1739041843282,-500.0,0.00012191,2]
[352322979,1739041843292,-639.88,0.00012191,2]
[352322981,1739041843302,-151.0,0.000122,2]
[352322983,1739041843312,-3000.0,0.000122,2]
[352322985,1739041843321,-2323.8647421,0.00012204,2]
[352322987,1739041843330,-22605.34381531,0.00012205,2]
[352322989,1739041843339,-1000.0,0.00012231,2]
[352322991,1739041843349,-2000.0,0.000123,2]
[352322993,1739041843358,-151.0,0.000123,2]
[352322995,1739041843368,-289.71604683,0.00012327,2]
[352322997,1739041843377,-151.0,0.00012328,2]
[352322999,1739041843388,-151.0,0.00012328,2]
[352323001,1739041843398,-707.757039,0.00012328,2]
[352323003,1739041843407,-346.820279,0.00012328,2]
[352323006,1739041843417,-707.757039,0.00012328,2]
[352323008,1739041843427,-346.820279,0.00012328,2]
[352323009,1739041843438,-240.050859,0.00012328,2]
[352323011,1739041843451,-240.050859,0.00012328,2]
[352323014,1739041843460,-151.0,0.00012328,2]
[352323016,1739041843470,-151.0,0.00012328,2]
[352323017,1739041843481,-151.0,0.00012328,2]
[352323020,1739041843491,-151.0,0.00012328,2]
[352323022,1739041843500,-500.0,0.00012328,2]
[352323024,1739041843509,-979.42,0.00012328,2]
[352323026,1739041843519,-1025.49,0.00012328,2]
[352323028,1739041843528,-598.38,0.00012328,2]
[352323030,1739041843538,-500.0,0.00012328,2]
[352323032,1739041843546,-151.0,0.00012328,2]
[352323034,1739041843556,-500.0,0.00012328,2]
[352323036,1739041843565,-151.0,0.00012328,2]
[352323039,1739041843574,-237.22452895,0.00012328,2]
[352323043,1739041843583,-684.76,0.00012328,2]
[352323045,1739041843593,-901.92,0.00012328,2]
[352323047,1739041843602,-151.0,0.00012328,2]
[352323049,1739041843611,-500.0,0.00012328,2]
[352323051,1739041843621,-151.0,0.00012328,2]
[352323053,1739041843630,-575.65,0.00012328,2]
[352323055,1739041843639,-763.58,0.00012328,2]
[352323057,1739041843649,-500.0,0.00012328,2]
[352323059,1739041843658,-202.441543,0.00012328,2]
[352323061,1739041843667,-202.441543,0.00012328,2]
[352323063,1739041843677,-151.0,0.00012328,2]
[352323065,1739041843686,-500.0,0.00012328,2]
[352323067,1739041843696,-702.82,0.00012328,2]
[352323069,1739041843706,-500.0,0.00012328,2]
[352323071,1739041843715,-500.0,0.00012328,2]
[352323073,1739041843725,-500.0,0.00012328,2]
[352323075,1739041843734,-500.0,0.00012328,2]
[352323077,1739041843744,-809.73,0.00012328,2]
[352323079,1739041843754,-1376.22,0.00012328,2]
[352323081,1739041843763,-779.03,0.00012328,2]
[352323083,1739041843772,-3344.46,0.00012328,2]
[352323085,1739041843782,-22625.44,0.00012328,2]
[352323087,1739041843791,-548.82,0.00012328,2]
[352323089,1739041843800,-500.0,0.00012328,2]
[352323091,1739041843809,-746.61,0.00012328,2]
[352323093,1739041843818,-988.79,0.00012328,2]
[352323095,1739041843828,-1169.28,0.00012328,2]
[352323097,1739041843838,-1091.33,0.00012328,2]
[352323099,1739041843847,-737.91,0.00012328,2]
[352323101,1739041843856,-500.0,0.00012328,2]
[352323103,1739041843867,-928.68,0.00012328,2]
[352323105,1739041843877,-564.92,0.00012328,2]
[352323107,1739041843886,-500.0,0.00012328,2]
[352323109,1739041843895,-8403.96,0.00012328,2]
[352323111,1739041843905,-500.0,0.00012328,2]
[352323113,1739041843914,-793.65,0.00012328,2]
[352323115,1739041843923,-1064.8,0.00012328,2]
[352323117,1739041843932,-836.92,0.00012328,2]
[352323119,1739041843942,-2770.49,0.00012328,2]
[352323121,1739041843951,-220.25905,0.00012328,2]
[352323123,1739041843966,-615.99,0.00012328,2]
[352323125,1739041843976,-189.0870215,0.00012328,2]
[352323127,1739041843985,-220.25905,0.00012328,2]
[352323129,1739041843995,-500.0,0.00012328,2]
[352323131,1739041844005,-500.0,0.00012328,2]
[352323133,1739041844014,-150.14,0.00012328,2]
[352323135,1739041844023,-150.14,0.00012328,2]
[352323137,1739041844034,-406.66251499,0.00012328,2]
[352323139,1739041844044,-2095.76,0.00012328,2]
[352323141,1739041844053,-486.770572,0.00012328,2]
[352323144,1739041844063,-486.770572,0.00012328,2]
[352323145,1739041844073,-500.0,0.00012328,2]
[352323148,1739041844082,-500.0,0.00012328,2]
[352323150,1739041844092,-825.31,0.00012328,2]
[352323152,1739041844101,-500.0,0.00012328,2]
[352323154,1739041844111,-950.637454,0.00012328,2]
[352323156,1739041844122,-1760.38,0.00012328,2]
[352323158,1739041844131,-950.637454,0.00012328,2]
[352323160,1739041844141,-4661.75,0.00012328,2]
[352323162,1739041844151,-500.0,0.00012328,2]
[352323164,1739041844161,-500.0,0.00012328,2]
[352323166,1739041844170,-500.0,0.00012328,2]
[352323168,1739041844180,-150.14,0.00012328,2]
[352323170,1739041844189,-150.14,0.00012328,2]
[352323172,1739041844199,-150.14,0.00012328,2]
[352323174,1739041844208,-150.14,0.00012328,2]
[352323176,1739041844217,-706.0,0.00012328,2]
[352323178,1739041844227,-1764.66,0.00012328,2]
[352323180,1739041844237,-929.2,0.00012328,2]
[352323182,1739041844246,-500.0,0.00012328,2]
[352323184,1739041844255,-150.14,0.00012328,2]
[352323186,1739041844265,-500.0,0.00012328,2]
[352323188,1739041844274,-2039.45,0.00012328,2]
[352323190,1739041844283,-150.14,0.00012328,2]
[352323192,1739041844293,-500.0,0.00012328,2]
[352323194,1739041844302,-500.0,0.00012328,2]
[352323196,1739041844312,-1859.27,0.00012328,2]
[352323198,1739041844322,-500.0,0.00012328,2]
[352323200,1739041844332,-975.34,0.00012328,2]
[352323202,1739041844341,-500.0,0.00012328,2]
[352323204,1739041844351,-500.0,0.00012328,2]
[352323206,1739041844361,-8082.14,0.00012328,2]
[352323208,1739041844371,-625.45,0.00012328,2]
[352323210,1739041844381,-877.14,0.00012328,2]
[352323212,1739041844391,-500.0,0.00012328,2]
[352323214,1739041844400,-629.44,0.00012328,2]
[352323216,1739041844409,-500.0,0.00012328,2]
[352323218,1739041844419,-639.88,0.00012328,2]
[352323220,1739041844429,-153.0,0.00012329,2]
[352323222,1739041844438,-153.0,0.00012329,2]
[352323224,1739041844447,-153.0,0.00012329,2]
[352323226,1739041844458,-208.4493237,0.00012329,2]
[352323228,1739041844468,-153.0,0.00012329,2]
[352323230,1739041844477,-2500.0,0.00012357,2]
[352323232,1739041844487,-153.0,0.00012384,2]
[352323234,1739041844497,-153.0,0.00012384,2]
[352323236,1739041844508,-1068.3211723,0.00012386,2]
[352323238,1739041844517,-153.0,0.00012411,2]
[352323240,1739041844526,-153.0,0.00012411,2]
[352323242,1739041844535,-153.0,0.00012411,2]
[352323244,1739041844544,-500.0,0.00012411,2]
[352323246,1739041844553,-465.02064172,0.00012449,2]
[352323248,1739041844563,-212.339,0.00012461,2]
[352323250,1739041844572,-212.339,0.00012461,2]
[352323252,1739041844582,-235.744348,0.00012465,2]
[352323254,1739041844592,-235.744348,0.00012465,2]
[352323256,1739041844602,-151.0,0.00012465,2]
[352323258,1739041844611,-204.813027,0.00012465,2]
[352323260,1739041844621,-204.813027,0.00012465,2]
[352323262,1739041844630,-151.0,0.00012465,2]
[352323264,1739041844639,-157.343438,0.00012465,2]
[352323266,1739041844649,-157.343438,0.00012465,2]
[352323268,1739041844658,-334.156484,0.00012465,2]
[352323270,1739041844668,-334.156484,0.00012465,2]
[352323272,1739041844678,-500.0,0.00012465,2]
[352323274,1739041844687,-979.42,0.00012465,2]
[352323276,1739041844696,-1025.49,0.00012465,2]
[352323278,1739041844706,-598.38,0.00012465,2]
[352323280,1739041844715,-500.0,0.00012465,2]
[352323282,1739041844725,-500.0,0.00012465,2]
[352323284,1739041844735,-684.76,0.00012465,2]
[352323286,1739041844745,-901.92,0.00012465,2]
[352323288,1739041844755,-500.0,0.00012465,2]
[352323290,1739041844765,-575.65,0.00012465,2]
[352323292,1739041844774,-763.58,0.00012465,2]
[352323294,1739041844784,-500.0,0.00012465,2]
[352323296,1739041844793,-500.0,0.00012465,2]
[352323298,1739041844803,-702.82,0.00012465,2]
[352323300,1739041844812,-500.0,0.00012465,2]
[352323302,1739041844821,-500.0,0.00012465,2]
[352323304,1739041844831,-500.0,0.00012465,2]
[352323306,1739041844841,-500.0,0.00012465,2]
[352323308,1739041844851,-809.73,0.00012465,2]
[352323310,1739041844860,-1376.22,0.00012465,2]
[352323312,1739041844870,-779.03,0.00012465,2]
[352323314,1739041844880,-3344.46,0.00012465,2]
[352323316,1739041844889,-22625.44,0.00012465,2]
[352323318,1739041844899,-548.82,0.00012465,2]
[352323320,1739041844908,-500.0,0.00012465,2]
[352323322,1739041844918,-746.61,0.00012465,2]
[352323324,1739041844928,-988.79,0.00012465,2]
[352323326,1739041844937,-1169.28,0.00012465,2]
[352323328,1739041844946,-1091.33,0.00012465,2]
[352323330,1739041844957,-737.91,0.00012465,2]
[352323332,1739041844968,-364.42582364,0.00012465,2]
[352323334,1739041844978,-928.68,0.00012465,2]
[352323336,1739041844987,-564.92,0.00012465,2]
[352323338,1739041844996,-473.385404,0.00012465,2]
[352323340,1739041845006,-151.0,0.00012465,2]
[352323342,1739041845015,-500.0,0.00012465,2]
[352323344,1739041845025,-8403.96,0.00012465,2]
[352323346,1739041845035,-473.385404,0.00012465,2]
[352323348,1739041845045,-500.0,0.00012465,2]
[352323350,1739041845055,-793.65,0.00012465,2]
[352323352,1739041845064,-1064.8,0.00012465,2]
[352323354,1739041845074,-836.92,0.00012465,2]
[352323356,1739041845082,-2770.49,0.00012465,2]
[352323358,1739041845092,-615.99,0.00012465,2]
[352323360,1739041845101,-2095.76,0.00012465,2]
[352323362,1739041845110,-500.0,0.00012465,2]
[352323364,1739041845120,-500.0,0.00012465,2]
[352323366,1739041845129,-825.31,0.00012465,2]
[352323368,1739041845137,-203.88817,0.00012465,2]
[352323370,1739041845147,-203.88817,0.00012465,2]
[352323372,1739041845157,-500.0,0.00012465,2]
[352323374,1739041845166,-1760.38,0.00012465,2]
[352323376,1739041845176,-4661.75,0.00012465,2]
[352323378,1739041845185,-500.0,0.00012465,2]
[352323380,1739041845195,-500.0,0.00012465,2]
[352323382,1739041845204,-542.87001007,0.00012465,2]
[352323402,1739041845389,-339.42320598,0.00012136,2]
[352323412,1739041845480,-2696.99999992,0.00012136,2]
[352323562,1739041847068,-10228.96895865,0.00012136,2]
[352323564,1739041847078,-1221.78998993,0.00012465,2]
[352323566,1739041847088,-929.2,0.00012465,2]
[352323568,1739041847097,-2039.45,0.00012465,2]
[352323570,1739041847107,-1859.27,0.00012465,2]
[352323572,1739041847117,-500.0,0.00012465,2]
[352323574,1739041847127,-975.34,0.00012465,2]
[352323576,1739041847137,-500.0,0.00012465,2]
[352323578,1739041847147,-8047.5914089,0.00012465,2]
[352323580,1739041847159,-34.5485911,0.00012465,2]
[352323582,1739041847168,-625.45,0.00012465,2]
[352323584,1739041847177,-287.190537,0.00012465,2]
[352323586,1739041847187,-502.05256148,0.00012465,2]
[352323598,1739041847292,-375.08743852,0.00012465,2]
[352323600,1739041847301,-151.0,0.00012465,2]
[352323602,1739041847311,-75.81525666,0.00012465,2]
[352323604,1739041847323,-424.18474334,0.00012465,2]
[352323606,1739041847332,-287.190537,0.00012465,2]
[352323608,1739041847342,-629.44,0.00012465,2]
[352323610,1739041847351,-500.0,0.00012465,2]
[352323612,1739041847361,-639.88,0.00012465,2]
[352323614,1739041847370,-166.368594,0.0001256,5]
[352323616,1739041847379,-500.0,0.00012574,2]
[352323618,1739041847391,-500.0,0.00012602,2]
[352323620,1739041847401,-846.24376499,0.00012602,2]
[352323622,1739041847411,-150.14,0.00012602,2]
[352323624,1739041847422,-150.14,0.00012602,2]
[352323626,1739041847435,-882.89614327,0.00012602,2]
[352323629,1739041847449,-150.14,0.00012602,2]
[352323631,1739041847461,-217.52974519,0.00012602,2]
[352323633,1739041847475,-706.0,0.00012602,2]
[352323635,1739041847486,-550.01228066,0.00012602,2]
[352323637,1739041847497,-500.0,0.00012602,2]
[352323640,1739041847511,-941.81578943,0.00012602,2]
[352323642,1739041847525,-624.6527871,0.00012602,2]
[352323645,1739041847539,-500.0,0.00012602,2]
[352323647,1739041847551,-235.744348,0.00012602,2]
[352323649,1739041847564,-235.744341,0.00012602,2]
[352323652,1739041847577,-212.339,0.00012602,2]
[352323654,1739041847591,-212.339,0.00012602,2]
[352323657,1739041847604,-151.0,0.00012602,2]
[352323659,1739041847615,-204.813027,0.00012602,2]
[352323661,1739041847628,-204.813027,0.00012602,2]
[352323663,1739041847639,-298.665351,0.00012602,2]
[352323665,1739041847651,-157.343438,0.00012602,2]
[352323668,1739041847664,-157.343438,0.00012602,2]
[352323670,1739041847677,-151.0,0.00012602,2]
[352323672,1739041847691,-151.0,0.00012602,2]
[352323675,1739041847702,-707.757039,0.00012602,2]
[352323677,1739041847714,-346.820279,0.00012602,2]
[352323679,1739041847727,-707.757039,0.00012602,2]
[352323681,1739041847738,-256.53776888,0.00012602,2]
[352323685,1739041847762,-90.28251012,0.00012602,2]
[352323687,1739041847776,-240.050859,0.00012602,2]
[352323690,1739041847790,-240.050859,0.00012602,2]
[352323692,1739041847803,-151.0,0.00012602,2]
[352323695,1739041847817,-151.0,0.00012602,2]
[352323697,1739041847831,-151.0,0.00012602,2]
[352323700,1739041847845,-162.81194665,0.00012602,2]
[352323702,1739041847862,-337.18805335,0.00012602,2]
[352323704,1739041847873,-717.612518,0.00012602,2]
[352323707,1739041847883,-173.36238804,0.00012602,2]
[352323709,1739041847897,-544.25012996,0.00012602,2]
[352323711,1739041847910,-151.0,0.00012602,2]
[352323714,1739041847924,-252.29021612,0.00012602,2]
[352323747,1739041848303,-543.34,0.00010958,2]
[352323750,1739041848316,-881.01250129,0.00010958,2]
[352323753,1739041848340,-255.20749871,0.00010958,2]
[352323755,1739041848353,-500.0,0.00010958,2]
[352323757,1739041848365,-543.34,0.00011095,2]
[352323759,1739041848376,-701.45250129,0.00011095,2]
[352323937,1739041850065,-434.76749871,0.00011095,2]
[352323939,1739041850076,-500.0,0.00011095,2]
[352323941,1739041850088,-543.34,0.00011232,2]
[352323943,1739041850098,-1136.22,0.00011232,2]
[352323945,1739041850107,-543.34,0.00011369,2]
[352323947,1739041850116,-1136.22,0.00011369,2]
[352323949,1739041850125,-543.34,0.00011506,2]
[352323951,1739041850134,-543.34,0.00011643,2]
[352323953,1739041850144,-727.12978388,0.00012602,2]
[352323955,1739041850153,-1025.49,0.00012602,2]
[352323957,1739041850162,-151.0,0.00012602,2]
[352323959,1739041850171,-151.0,0.00012602,2]
[352323961,1739041850181,-598.38,0.00012602,2]
[352323963,1739041850190,-500.0,0.00012602,2]
[352323965,1739041850199,-500.0,0.00012602,2]
[352323967,1739041850209,-684.76,0.00012602,2]
[352323969,1739041850218,-901.92,0.00012602,2]
[352323971,1739041850228,-500.0,0.00012602,2]
[352323973,1739041850237,-575.65,0.00012602,2]
[352323975,1739041850246,-763.58,0.00012602,2]
[352323977,1739041850255,-500.0,0.00012602,2]
[352323979,1739041850264,-202.441543,0.00012602,2]
[352323981,1739041850273,-151.0,0.00012602,2]
[352323983,1739041850282,-202.441543,0.00012602,2]
[352323985,1739041850291,-151.0,0.00012602,2]
[352323987,1739041850300,-500.0,0.00012602,2]
[352323989,1739041850309,-151.0,0.00012602,2]
[352323991,1739041850319,-702.82,0.00012602,2]
[352323993,1739041850328,-201.471308,0.00012602,2]
[352323995,1739041850337,-201.471308,0.00012602,2]
[352323997,1739041850347,-500.0,0.00012602,2]
[352323999,1739041850356,-185.146042,0.00012602,2]
[352324001,1739041850366,-185.146042,0.00012602,2]
[352324003,1739041850375,-500.0,0.00012602,2]
[352324005,1739041850384,-500.0,0.00012602,2]
[352324007,1739041850393,-500.0,0.00012602,2]
[352324009,1739041850402,-1376.22,0.00012602,2]
[352324011,1739041850412,-779.03,0.00012602,2]
[352324013,1739041850421,-589.20272878,0.00012602,2]
[352324722,1739042043081,-174.85,0.00014027,30]
[352324727,1739042732113,-400.0,0.00010685,2]
[352324728,1739042732133,-500.0,0.00010958,2]
[352324729,1739042732154,-359.98069601,0.00010958,2]
[352324730,1739042732174,-500.0,0.00010958,2]
[352324731,1739042732194,-500.0,0.00010958,2]
[352324732,1739042732217,-500.0,0.00010958,2]
[352324733,1739042732240,-500.0,0.00010958,2]
[352324734,1739042732260,-500.0,0.00010958,2]
[352324735,1739042732282,-500.0,0.00010958,2]
[352324736,1739042732303,-500.0,0.00010958,2]
[352324737,1739042732326,-500.0,0.00010958,2]
[352324738,1739042732347,-500.0,0.00010958,2]
[352324739,1739042732370,-500.0,0.00010958,2]
[352324740,1739042732393,-500.0,0.00010958,2]
[352324741,1739042732417,-631.03,0.00010958,2]
[352324742,1739042732440,-500.0,0.00010958,2]
[352324743,1739042732471,-500.0,0.00010958,2]
[352324744,1739042732494,-500.0,0.00010958,2]
[352324745,1739042732517,-500.0,0.00010958,2]
[352324746,1739042732539,-500.0,0.00010958,2]
[352324747,1739042732561,-500.0,0.00010958,2]
[352324748,1739042732584,-500.0,0.00010958,2]
[352324749,1739042732608,-500.0,0.00010958,2]
[352324750,1739042732629,-500.0,0.00010958,2]
[352324751,1739042732652,-500.0,0.00010958,2]
[352324752,1739042732673,-500.0,0.00010958,2]
[352324753,1739042732695,-276.14442453,0.00010958,2]
[352324754,1739042732719,-500.0,0.00010958,2]